Cogmind - Beta 17 @@@ ROGUE MODE // 2026.08.03 @ 16:39:59 Player: dispear Result: Destroyed by P-60 Hacker with Shock Rifle Performance ------------- Evolutions (4) 2000 Regions Visited (8) 1600 Robots Destroyed (37) 185 Value Destroyed (1231) 1231 Prototype IDs (5) 100 Alien Tech Used (0) 0 Bonus (0) 0 TOTAL SCORE: 5116 Bonus ------- None Cogmind --------- Core Integrity 0/850 Matter 251/300 Energy 97/100 System Corruption 3% Temperature Cool (0) Movement Walking (120) Location -6/Factory Parts ------- > --- POWER (2) -------- (None) > --- PROPULSION (4) --- Armored Leg Armored Leg > --- UTILITY (6) ------ Coolant Injector Focal Shield > --- WEAPON (3) ------- (None) > --- INVENTORY (5) ---- Surge Thruster Peak State ------------ > --- POWER ------------ Improved Deuterium Engine Enhanced Nuclear Core > --- PROPULSION ------- Carbon-fiber Leg Carbon-fiber Leg Titanium Leg Titanium Leg > --- UTILITY ---------- Seismic Detector ECM Suite Improved Light Armor Plating Reflective Plating Hacking Suite > --- WEAPON ----------- Heavy Particle Gun Cooled Pulse Rifle > --- INVENTORY -------- Light Deuterium Engine Light Nuclear Core Aluminum Leg Heat Sink Core Analyzer [Rating: 42] Favorites ----------- Power Ion Engine Engine Ion Engine Power Core Enhanced Nuclear Core Propulsion Aluminum Leg Leg Aluminum Leg Wheel Wheel Flight Unit Surge Thruster Utility Seismic Detector Device Seismic Detector Storage Small Storage Unit Processor Core Analyzer Hackware Hacking Suite Protection Improved Light Armor Plating Weapon Heavy Particle Gun Energy Gun Heavy Particle Gun Energy Cannon Particle Cannon Ballistic Cannon Assault Cannon Slashing Weapon Blade Saw Build | -11 -10 -9 -9 -8 -7 -7 -7 -6 ------- Run | Yrd Mat Mat Min Mat Fac Low Low Fac Slots Evolved 8 | . . 2 . 2 2 . . 2 Power 1 | . . . . 1 . . . . Propulsion 2 | . . 1 . . 1 . . . Utility 4 | . . 1 . 1 1 . . 1 Weapon 1 | . . . . . . . . 1 Parts Attached 53 | 9 . 8 1 12 9 . . 14 Power 9 | 2 . 1 . 2 2 . . 2 Engine 7 | 2 . 1 . 1 1 . . 2 Core 2 | . . . . 1 1 . . . Reactor . | . . . . . . . . . Propulsion 16 | 2 . 3 . 3 3 . . 5 Treads . | . . . . . . . . . Leg 13 | 2 . 3 . 3 3 . . 2 Wheel 2 | . . . . . . . . 2 Hover . | . . . . . . . . . Flight 1 | . . . . . . . . 1 Utility 16 | 3 . 1 . 5 2 . . 5 Device 9 | 2 . 1 . 1 1 . . 4 Storage 2 | 1 . . . 1 . . . . Processor 1 | . . . . . . . . 1 Hackware 1 | . . . . 1 . . . . Protection 3 | . . . . 2 1 . . . Artifact . | . . . . . . . . . Weapon 12 | 2 . 3 1 2 2 . . 2 Energy Gun 8 | 2 . 2 1 1 2 . . . Energy Cannon 2 | . . 1 . . . . . 1 Ballistic Gun . | . . . . . . . . . Ballistic Cannon 1 | . . . . 1 . . . . Launcher . | . . . . . . . . . Special Weapon . | . . . . . . . . . Impact Weapon . | . . . . . . . . . Slashing Weapon 1 | . . . . . . . . 1 Piercing Weapon . | . . . . . . . . . Special Melee Weapon . | . . . . . . . . . Unidentified Prototypes 3 | . . . . 1 2 . . . Parts Lost 13 | . . 1 . . . 7 . 5 Power 4 | . . . . . . 3 . 1 Propulsion 3 | . . . . . . 2 . 1 Utility 5 | . . 1 . . . 2 . 2 Weapon 1 | . . . . . . . . 1 Highest Loss Streak 7 | . . 1 . . . 7 . 3 To Critical Strikes . | . . . . . . . . . Average Backups 3 | . 3 5 5 4 3 3 2 2 Power . | . 1 1 2 1 1 . . . Propulsion . | . . . 1 . . . . . Utility 1 | . 1 2 1 1 1 1 1 1 Weapon . | . . 1 1 1 . . 1 . Tool/Special . | . . . . . . . . . Unused Backups 3 | . . . 1 . . 1 . 1 Power . | . . . . . . . . . Propulsion . | . . . . . . . . . Utility 2 | . . . 1 . . 1 . . Weapon 1 | . . . . . . . . 1 Tool/Special . | . . . . . . . . . Average Slot Usage (%) 74 | . 99 94 88 96 96 93 . 15 Engine 9 | . 14 11 11 17 4 6 . 1 Core 1 | . . . . . 9 6 . . Leg 22 | . 28 32 33 27 27 27 . 3 Device 14 | . 14 17 11 18 17 21 . 6 Storage 3 | . 14 11 11 1 . . . . Hackware 3 | . . . . 5 7 6 . . Protection 4 | . . . . 7 11 6 . . Energy Gun 10 | . 27 16 11 9 13 14 . . Energy Cannon 1 | . . 5 11 . . . . . Ballistic Cannon 2 | . . . . 8 1 . . . Peak Build Rating 42 | 9 7 13 11 27 42 42 1 26 Average Rating 18 | 5 6 10 10 22 37 38 . 9 On Entrance 11 | . 7 7 10 10 27 42 . 1 Avg Prop Armor Cover (%) 28 | . . . . . . . . 28 Naked Turns 408 | . . . . . . 26 193 189 Heaviest Build 35 | 15 15 19 18 33 35 34 . 15 Greatest Support 64 | 20 20 30 30 44 64 64 3 32 Greatest Overweight (x) 2 | 1 . . . 1 . . . 2 Average Overweight (x) . | . . . . . . . . . Largest Inventory Capacity 10 | 8 8 8 8 10 5 5 5 5 Average Capacity 5 | 7 8 8 8 5 5 5 5 5 Most Carried 8 | 3 5 8 7 6 5 5 4 5 Average Carried 4 | . 3 5 5 4 3 3 2 2 Final Capacity 8 | 8 8 8 8 5 5 5 5 5 Final Carried 8 | 2 5 8 6 5 4 2 4 1 Class Distribution -------------------- 77% | Mutant 22% | Scavenger-Mutant Dominant Class ---------------- Mutant | -10/Materials Mutant | -9/Materials Mutant | -9/Mines Mutant | -8/Materials Mutant | -7/Factory Scavenger-Mutant | -7/Lower Caves Mutant | -7/Lower Caves Mutant | -6/Factory Resources | -11 -10 -9 -9 -8 -7 -7 -7 -6 ----------- Run | Yrd Mat Mat Min Mat Fac Low Low Fac Matter Collected 1015 | 239 145 147 33 190 150 25 . 86 Remotely . | . . . . . . . . . Salvage Created 1472 | 50 216 295 19 173 175 450 . 94 Parts 73 | 7 12 16 1 6 9 13 . 9 Haulers Intercepted . | . . . . . . . . . Recyclers Shooed . | . . . . . . . . . Parts Field Recycled . | . . . . . . . . . Retrieved Matter . | . . . . . . . . . Parts Self-Destructed 12 | . . . . . . 12 . . Prevented 4 | . . . . . . . 4 . Parts Restored . | . . . . . . . . . Kills | -11 -10 -9 -9 -8 -7 -7 -7 -6 ------- Run | Yrd Mat Mat Min Mat Fac Low Low Fac Combat Hostiles Destroyed 28 | . 3 6 . 4 3 9 . 3 Melee 2 | . . . . . . . . 2 Guns 18 | . 3 4 . 1 3 7 . . Cannons 6 | . . 2 . 3 . . . 1 Classes Destroyed 11 | 1 3 3 . 1 . 2 . 1 Worker 2 | . . 1 . . . . . 1 Tunneler 3 | 2 . . 1 . . . . . Recycler 1 | . 1 . . . . . . . Watcher 3 | . 1 1 . 1 . . . . Swarmer 2 | . . . . . . 2 . . Cutter 3 | . . . . . . . . 3 Grunt 15 | . 3 4 . 2 2 4 . . Duelist 3 | . . 1 . . 1 1 . . Sentry 3 | . . 1 . 1 . 1 . . Hunter 1 | . . . . 1 . . . . Programmer 1 | . . . . . . 1 . . Best Kill Streak 5 | 2 3 4 1 2 3 5 . 2 Combat Bots Only 5 | . 2 3 . 1 3 5 . 2 Max Kills in Single Turn 1 | 1 1 1 1 1 1 1 . 1 Gunslinging . | . . . . . . . . . Exploded . | . . . . . . . . . Melee 1 | . . . . . . . . 1 Uniques/NPCs Destroyed . | . . . . . . . . . Combat | -11 -10 -9 -9 -8 -7 -7 -7 -6 -------- Run | Yrd Mat Mat Min Mat Fac Low Low Fac Hostile Shots Fired 319 | . 11 51 . 38 4 108 . 107 Missed 118 | . 6 14 . 21 1 32 . 44 Hits 201 | . 5 37 . 17 3 76 . 63 Melee 34 | . . 3 . . . 4 . 27 Projectile 167 | . 5 34 . 17 3 72 . 36 AOE 2 | . . . . . . . . 2 Critical Strikes 22 | . . 2 . . . 7 . 13 Part Disruptions 1 | . . . . . . . . 1 Damage Taken 3392 | . 53 498 . 184 40 1281 . 1336 Core 1126 | . 10 57 . 26 . 183 . 850 Absorbed by Shields . | . . . . . . . . . Ignored by Resistances 8 | . . . . . 6 2 . . Core Remaining (%) 89 | 100 96 . 85 95 . . 73 . Volleys Fired 105 | 4 17 28 3 18 6 24 . 5 Largest 2 | 2 2 2 2 2 2 2 . 1 Hottest 124 | 90 90 124 124 92 75 89 . 85 Shots Fired 206 | 8 34 57 6 36 12 48 . 5 Gun 165 | 8 34 42 3 18 12 48 . . Cannon 41 | . . 15 3 18 . . . 5 Launcher . | . . . . . . . . . Special . | . . . . . . . . . Kinetic 18 | . . . . 18 . . . . Thermal 164 | 4 17 54 6 18 12 48 . 5 Explosive . | . . . . . . . . . Electromagnetic 24 | 4 17 3 . . . . . . Robot Hit Streak 15 | 1 7 5 3 10 6 15 . 1 Robot Miss Streak 4 | 2 2 4 1 3 1 1 . 3 Penetration Max . | . . . . . . . . . Secondary Targets 6 | . 1 1 . . . 4 . . Max Gunslinging Chain 1 | . 1 1 . . . 1 . . Shots Hit Robots 139 | 3 22 31 4 24 9 41 . 5 Core Hits 65 | 2 8 14 . 8 7 17 . 9 Critical Kills . | . . . . . . . . . Critical Parts Destroyed . | . . . . . . . . . Critical Strikes 6 | . 2 1 . . 1 2 . . Burn 6 | . 2 1 . . 1 2 . . Melee Attacks 5 | . . . . . . . . 5 Impact . | . . . . . . . . . Slashing 5 | . . . . . . . . 5 Piercing . | . . . . . . . . . Sneak Attacks 1 | . . . . . . . . 1 Combat Hostiles . | . . . . . . . . . Follow-up Attacks . | . . . . . . . . . Damage Inflicted 2556 | 43 291 502 76 494 164 827 . 159 Guns 1889 | 43 291 340 14 210 164 827 . . Cannons 538 | . . 162 62 284 . . . 30 Explosions . | . . . . . . . . . Melee 77 | . . . . . . . . 77 Ramming 52 | . . . . . . . . 52 Kinetic 284 | . . . . 284 . . . . Thermal 1933 | . 152 474 76 210 164 827 . 30 Explosive . | . . . . . . . . . Electromagnetic 210 | 43 139 28 . . . . . . Impact . | . . . . . . . . . Slashing 77 | . . . . . . . . 77 Piercing . | . . . . . . . . . Highest Corruption 4 | . . 4 4 . . . . 3 Average Corruption 3 | . . 3 4 . . . . 1 Corruption Purged . | . . . . . . . . . Corruption Blocked . | . . . . . . . . . Effects 13 | . . 8 3 . . . . 2 Message Errors 2 | . . 1 . . . . . 1 Heat Flow Errors 2 | . . 1 1 . . . . . Energy Discharges 4 | . . 3 1 . . . . . Data Loss (minor) 3 | . . 2 . . . . . 1 Misfires 1 | . . 1 . . . . . . Alerts 1 | . . . 1 . . . . . Overload Shots . | . . . . . . . . . Overflow Damage 30 | . . . 11 10 . . . 9 Projectiles 21 | . . . 11 10 . . . . Explosions . | . . . . . . . . . Melee 9 | . . . . . . . . 9 Knockbacks 7 | . . . . 7 . . . . Impact . | . . . . . . . . . Kinetic 6 | . . . . 6 . . . . Secondary 1 | . . . . 1 . . . . Self-Inflicted Damage 23 | . . . . . . . . 23 Shots . | . . . . . . . . . Rammed 10 | . . . . . . . . 10 Targets Rammed 15 | . . . . . . . . 15 Kicked 5 | . . . . . . . . 5 Crushed . | . . . . . . . . . Highest Temperature 481 | 72 192 481 319 166 225 50 . 100 Average Temperature 101 | 31 77 165 117 53 123 19 . 53 Received Heat Transfer 798 | . 30 213 . 54 27 441 . 33 Effects 7 | . . 7 . . . . . . Shutdowns 2 | . . 2 . . . . . . Energy Bleed 2 | . . 2 . . . . . . Matter Decay 1 | . . 1 . . . . . . Short Circuit 1 | . . 1 . . . . . . Damage (minor) 1 | . . 1 . . . . . . Siege Activations . | . . . . . . . . . Martial Activations . | . . . . . . . . . Shielding Activations . | . . . . . . . . . Robots Disrupted . | . . . . . . . . . Combat Hostiles . | . . . . . . . . . Robots Corrupted . | . . . . . . . . . Combat Hostiles . | . . . . . . . . . Parts Fried . | . . . . . . . . . Impact Corruptions 1 | . . . . . . . . 1 Robots Melted 2 | . . . . . . 2 . . Combat Hostiles 2 | . . . . . . 2 . . Parts Melted 11 | . . 1 . 1 2 7 . . Heat Transferred 4514 | . 592 1184 148 407 407 1739 . 37 Parts Sabotaged . | . . . . . . . . . Parts Stolen . | . . . . . . . . . Parts Stripped . | . . . . . . . . . Power Chain Reactions . | . . . . . . . . . Alert | -11 -10 -9 -9 -8 -7 -7 -7 -6 ------- Run | Yrd Mat Mat Min Mat Fac Low Low Fac Maximum Alert Level . | . . . . . . . . . Low Security (%) 100 | 100 100 100 100 100 100 . . 100 Level 1 . | . . . . . . . . . Level 2 . | . . . . . . . . . Level 3 . | . . . . . . . . . Level 4 . | . . . . . . . . . Level 5 . | . . . . . . . . . High Security . | . . . . . . . . . Max Security . | . . . . . . . . . Peak Influence 93 | 5 40 60 15 45 71 . . 93 Initial 15 | . . 9 15 . 12 . . . Average 15 | 1 13 15 3 6 23 . . 33 Influence Increases 901 | 10 72 153 5 132 71 260 . 198 Destroy 0b10 Robot/C 560 | . 60 120 . 80 60 180 . 60 Destroy 0b10 Robot/NC 45 | 10 10 10 5 5 . . . 5 Destroy Leader 86 | . 2 22 . 22 10 20 . 10 Successful Hack 8 | . . . . 8 . . . . Disable Machine 15 | . . . . 15 . . . . Destroy Structure 7 | . . 1 . 2 1 . . 3 Partial Spotted 45 | . . . . . . . . 45 Lose Combat Pursuer 135 | . . . . . . 60 . 75 Influence Decreases 901 | 10 50 135 45 103 69 211 80 198 Entered New Map 84 | . . 13 25 . 17 13 16 . Time Decay 687 | 10 50 112 20 103 52 128 64 148 Lost Part 130 | . . 10 . . . 70 . 50 Squads Dispatched 5 | . . . . 2 . . . 3 Investigation 3 | . . . . 2 . . . 1 Extermination 1 | . . . . . . . . 1 Reinforcement 1 | . . . . . . . . 1 Assault . | . . . . . . . . . Garrison . | . . . . . . . . . Intercept . | . . . . . . . . . Searches Triggered . | . . . . . . . . . Construction Impeded . | . . . . . . . . . Haulers Reinforced . | . . . . . . . . . Active Scanning Responses . | . . . . . . . . . Cargo Convoy Interrupts . | . . . . . . . . . Stealth | -11 -10 -9 -9 -8 -7 -7 -7 -6 --------- Run | Yrd Mat Mat Min Mat Fac Low Low Fac Distress Signals 3 | . 2 . . 1 . . . . Communications Jammed . | . . . . . . . . . Distress Signals . | . . . . . . . . . Times Spotted 60 | . 6 16 . 5 4 19 . 10 Peak Tracking Total 11 | . 4 6 . 2 3 11 . 4 Tactical Retreats 7 | . . . . . 1 3 . 3 ECM-based Alert Blocks 8 | . . . . . 3 5 . . Traps | -11 -10 -9 -9 -8 -7 -7 -7 -6 ------- Run | Yrd Mat Mat Min Mat Fac Low Low Fac Traps Triggered 5 | . 1 3 . 1 . . . . Indirectly . | . . . . . . . . . Trap Hack Attempts . | . . . . . . . . . Triggered . | . . . . . . . . . Disarmed . | . . . . . . . . . Reprogrammed . | . . . . . . . . . Reused . | . . . . . . . . . Traps Extracted . | . . . . . . . . . Installed . | . . . . . . . . . Triggered . | . . . . . . . . . Machines | -11 -10 -9 -9 -8 -7 -7 -7 -6 ---------- Run | Yrd Mat Mat Min Mat Fac Low Low Fac Machines Disabled 1 | . . . . 1 . . . . Max in Single Turn 1 | . . . . 1 . . . . Machines Repaired . | . . . . . . . . . Machines Dismantled . | . . . . . . . . . Machines Sabotaged . | . . . . . . . . . Overloaded Fab Kills . | . . . . . . . . . Hacking | -11 -10 -9 -9 -8 -7 -7 -7 -6 --------- Run | Yrd Mat Mat Min Mat Fac Low Low Fac Machines Accessed 5 | . . . . 2 . . . 3 Terminals 5 | . . . . 2 . . . 3 Fabricators . | . . . . . . . . . Repair Stations . | . . . . . . . . . Recycling Units . | . . . . . . . . . Scanalyzers . | . . . . . . . . . Garrison Access . | . . . . . . . . . Total Hacks 13 | . . . . 6 . . . 7 Successful 6 | . . . . 4 . . . 2 Failed 7 | . . . . 2 . . . 5 Catastrophic 1 | . . . . 1 . . . . Database Lockouts . | . . . . . . . . . Manual 6 | . . . . 2 2 . . 2 Terminals 13 | . . . . 6 . . . 7 Fabricators . | . . . . . . . . . Repair Stations . | . . . . . . . . . Recycling Units . | . . . . . . . . . Scanalyzers . | . . . . . . . . . Garrison Access . | . . . . . . . . . Terminal Hacks 6 | . . . . 4 . . . 2 Record 4 | . . . . 3 . . . 1 Prototype ID Bank 1 | . . . . . . . . 1 Hauler Manifests 1 | . . . . 1 . . . . Fabricator Hacks . | . . . . . . . . . Repair Station Hacks . | . . . . . . . . . Recycling Unit Hacks . | . . . . . . . . . Scanalyzer . | . . . . . . . . . Garrison Access Hacks . | . . . . . . . . . Unauthorized Hacks . | . . . . . . . . . Terminals . | . . . . . . . . . Fabricators . | . . . . . . . . . Repair Stations . | . . . . . . . . . Recycling Units . | . . . . . . . . . Scanalyzers . | . . . . . . . . . Garrison Access . | . . . . . . . . . Data Cores Recovered . | . . . . . . . . . Used . | . . . . . . . . . Hacking Detections 6 | . . . . 2 1 . . 3 Full Trace Events 2 | . . . . 1 . . . 1 Feedback Events . | . . . . . . . . . Feedback Blocked . | . . . . . . . . . Robot Schematics Acquired . | . . . . . . . . . Robots Built . | . . . . . . . . . Authchips . | . . . . . . . . . Time . | . . . . . . . . . Total Robot Build Rating . | . . . . . . . . . Part Schematics Acquired . | . . . . . . . . . Parts Built . | . . . . . . . . . Authchips . | . . . . . . . . . Time . | . . . . . . . . . Total Part Build Rating . | . . . . . . . . . Part Studies Acquired . | . . . . . . . . . Parts Repaired . | . . . . . . . . . Time . | . . . . . . . . . Parts Recycled . | . . . . . . . . . Recycled Matter . | . . . . . . . . . Retrieved Matter . | . . . . . . . . . Retrieved Components . | . . . . . . . . . Parts Scanalyzed . | . . . . . . . . . Part Schematics Acquired . | . . . . . . . . . Parts Damaged . | . . . . . . . . . Bothacking | -11 -10 -9 -9 -8 -7 -7 -7 -6 ------------ Run | Yrd Mat Mat Min Mat Fac Low Low Fac Used RIF Installer . | . . . . . . . . . Robots Hacked . | . . . . . . . . . Non-combat . | . . . . . . . . . Combat . | . . . . . . . . . Robot Hacks Applied . | . . . . . . . . . Relay Couplers Released . | . . . . . . . . . Fabnet Peak Effective % . | . . . . . . . . . Robots Rewired . | . . . . . . . . . Allies Hacked . | . . . . . . . . . Hacks Repelled . | . . . . . . . . . Allies | -11 -10 -9 -9 -8 -7 -7 -7 -6 -------- Run | Yrd Mat Mat Min Mat Fac Low Low Fac Total Allies . | . . . . . . . . . Largest Group . | . . . . . . . . . Highest-Rated Group . | . . . . . . . . . Highest-Rated Ally . | . . . . . . . . . Total Orders . | . . . . . . . . . Ally Attacks . | . . . . . . . . . Total Damage . | . . . . . . . . . Kills . | . . . . . . . . . Allies Corrupted . | . . . . . . . . . Allies Melted . | . . . . . . . . . Intel | -11 -10 -9 -9 -8 -7 -7 -7 -6 ------- Run | Yrd Mat Mat Min Mat Fac Low Low Fac Active Infowar (turns) 1941 | 25 179 300 139 744 185 369 . . Terrain 102 | 18 . 84 . . . . . . Seismic 1913 | 7 179 300 139 744 185 359 . . ECM 1239 | . . 102 1 582 185 369 . . Robot Analysis Total . | . . . . . . . . . Derelict Logs Recovered 1 | . . . 1 . . . . . Drone Launches . | . . . . . . . . . Drone Recoveries . | . . . . . . . . . Exploration | -11 -10 -9 -9 -8 -7 -7 -7 -6 ------------- Run | Yrd Mat Mat Min Mat Fac Low Low Fac Turns Passed 2659 | 83 179 300 139 744 185 395 193 441 Spaces Moved 1873 | 46 95 140 103 250 105 267 367 500 Core 777 | 5 . . . . . 51 367 354 Treads . | . . . . . . . . . Legs 1075 | 41 95 140 103 250 105 216 . 125 Wheels 21 | . . . . . . . . 21 Hover . | . . . . . . . . . Flight . | . . . . . . . . . Fastest Speed 50 | 50 120 120 120 120 125 50 50 50 Average Speed 91 | 116 120 120 120 122 125 110 50 68 Slowest Speed 190 | 120 120 120 120 190 126 125 50 150 Overloaded Moves . | . . . . . . . . . Propulsion Burnouts . | . . . . . . . . . Robots Hopped . | . . . . . . . . . Potential Cave-ins . | . . . . . . . . . Cave-ins Triggered . | . . . . . . . . . Exploration Rate (%) 26 | 3 28 21 39 24 3 49 53 14 Regions Visited 8 Branch Regions 3 Pre-discovered Areas . | . . . . . . . . . Known Exits Taken 1 | . . . . 1 . . . . Unknown Exits Taken 7 | 1 1 1 1 . 1 1 1 . Scrap Searched 5 | . . . 1 . . 2 2 . Spaces Dug . | . . . . . . . . . Terrain Destroyed 6 | . . . . 2 . . . 4 Melee . | . . . . . . . . . Projectile 6 | . . . . 2 . . . 4 AOE . | . . . . . . . . . Terrain Rammed . | . . . . . . . . . Walls Destroyed . | . . . . . . . . . Machines Disabled . | . . . . . . . . . Actions | -11 -10 -9 -9 -8 -7 -7 -7 -6 --------- Run | Yrd Mat Mat Min Mat Fac Low Low Fac Total 2580 | 63 125 213 113 652 146 318 375 575 Wait 470 | . 10 33 1 358 15 22 7 24 Move 1865 | 45 94 139 102 249 104 266 366 500 Hop . | . . . . . . . . . Pick Up 17 | 3 3 . . 2 3 2 2 2 Fast Attach 28 | 7 1 2 . 3 1 . . 14 Attach 17 | . . 3 1 2 2 3 . 6 Detach 9 | . . 2 1 2 1 . . 3 Swap 27 | 2 . 6 2 9 8 . . . Drop 22 | 2 . . 3 9 6 1 . 1 Fire 105 | 4 17 28 3 18 6 24 . 5 Melee 5 | . . . . . . . . 5 Ram 10 | . . . . . . . . 10 Kick 5 | . . . . . . . . 5 Crush . | . . . . . . . . . Escape Stasis . | . . . . . . . . . Rewire . | . . . . . . . . . Trap . | . . . . . . . . . Miscellaneous . | . . . . . . . . . Route ------- -11/Scrapyard -10/Materials -9/Materials -9/Mines -8/Materials -7/Factory -7/Lower Caves -7/Lower Caves -6/Factory History --------- Turn | Location | Event 2 | -11/Scrapyard | Met Revision 17 6 | -11/Scrapyard | Discovered new exit (range 16) 84 | -11/Scrapyard | Entered Materials 244 | -10/Materials | Discovered new exit (range 16) 263 | -10/Materials | Entered another Materials area 263 | -9/Materials | Evolved 2 slots: Propulsion x1, Utility x1 304 | -9/Materials | Build established: Mutant 555 | -9/Materials | Discovered new exit (range 8) 563 | -9/Materials | Entered Mines 590 | -9/Mines | Learned location of 1 exit from Materials 640 | -9/Mines | Assembled infested the area 645 | -9/Mines | Assisted by a Guerilla fighting off Assembled 693 | -9/Mines | Discovered new exit (range 8) 702 | -9/Mines | Entered Materials 702 | -8/Materials | Evolved 2 slots: Power x1, Utility x1 703 | -8/Materials | Identified exit to Factory 1446 | -8/Materials | Entered Factory 1446 | -7/Factory | Evolved 2 slots: Propulsion x1, Utility x1 1618 | -7/Factory | Discovered new exit (range 10) 1631 | -7/Factory | Entered Lower Caves 1866 | -7/Lower Caves | Build established: Scavenger-Mutant 1963 | -7/Lower Caves | Attracted the attention of an 0b10 base 2000 | -7/Lower Caves | Released all parts (8) 2019 | -7/Lower Caves | Discovered new exit (range 15) 2026 | -7/Lower Caves | Entered another Lower Caves area 2028 | -7/Lower Caves | Lost 7 parts (3p2n2u) 2051 | -7/Lower Caves | Discovered new exit (range 6) 2219 | -7/Lower Caves | Entered Factory 2219 | -6/Factory | Evolved 2 slots: Utility x1, Weapon x1 2295 | -6/Factory | Build established: Mutant 2423 | -6/Factory | Core integrity fell below 50% 2455 | -6/Factory | Core integrity fell below 20% 2645 | -6/Factory | Lost 3 parts (1p1u1w) 2660 | -6/Factory | Destroyed by P-60 Hacker with Shock Rifle Last Messages --------------- C-17 Slicer destroyed. Acquired 25 matter. Sneak attack on M-28 Smith. Acquired Arm. Leg. Acquired Deuterium Engine. Acquired Imp. Cooling System. Acquired Surge Thruster. Discarded Broken Core Analyzer. Acquired Focal Shield. 9KASQZYH6/&X,QD1B#C5SDESUX VR,J9E|95 ALERT: Potential suspicious activity detected, Programmers report to Factory Zone 4I. Blade Saw destroyed. Deuterium Engine destroyed. Imp. Cooling System destroyed. Acquired Arm. Leg. System corrupted: Component data lost. Kicked P-60 Hacker. Kicked P-60 Hacker out of the way. Kicked P-60 Hacker. Map ----- +----------------------------------------------------+ | ????????????????????????????????????????? | | ????????????????????????????????????????? | | ????????????????????????????????????????? | | ????????????????????????????????????????? | | ????????????????????????????????????????? | | ????????????????????????????????????????? | | ????????????????????????????????????????? | | ????????????????????????????????????????? | | ????????????????????????????????????????? | | ????????????????????????????????????????? | | ????????????????????????????????????????? | | ????????????????????????????????????????? | | ???????????????????????###########??????? | | ???????????????????????# #??????? | | ???????????????????????# #??????? | | ???????????????????????# #??????? | | ???????????????????????# """ """ #???#### | | ???????????????????????# """ """ #??? # | | ???????????????????????# """ """ #?? # | | ???????????????????????# #?? # | | ???????????????????????# #? " " # | | ???????????####+#############/####? " " # | | ??????????? t p # " " # | | ?????????? # " " # | | ?????????? + " " # | | ?????????? @ # " " # | | ?????????? ^ # " " # | | ????????????## ######+####### #? " " # | | ?????????????????# # #? " " # | | ?????????????????# + #?? # | | ???????????????????""" """ ## #?? # | | ?????????????????????? """ ?# #???#### | | ?????????????????????? """ ??# #??????? | | ?????????????????????? ??# #??????? | | ?????????????????????" """ ???# #??????? | | ?????????????????????" """ ???# #??????? | | ?????????????????????" """ ????# #??????? | | ????? ???????????????? ????# #??????? | | ????? ! ?????????????? ?????# #??????? | | ???? ???????????? ?????# #??????? | | ?????? ??????????##??????# #??????? | | ???????""" ????????????????# #??????? | | ???????""" ############### #??????? | | ???????""" + ## #??????? | | ???????""" ####### """ ## ##?????? | | ????? ????????# """ # #?????? | | ???? ??????????# """ + " #?????? | | ???? ????????????# # #?????? | | ?????####??????????????# ## ######## | | ??????????????????############## # """ # | +----------------------------------------------------+ Best States ------------- Heat Dissipation 64 Coolant Potential 65 Energy Generation 28 Energy Capacity 490 Matter Stores 300 Matter Capacity 300 Sight Range 16 Terrain Scan Range 16 Terrain Scan Density 10 ECM Strength 1 Armor Coverage 300 Resistance: KI 20 Resistance: TH 10 Evasion (%) 55 Core Analysis 6 Offensive Hacking 10 Item Schematics ----------------- None Robot Schematics ------------------ None Fabricated ------------ Nothing Repaired ---------- Nothing Studied --------- None Alien Tech Used ----------------- None Achievements -------------- Fist Fight You Again Challenges ------------ None Game ------ Seed SmallDefenseShovel Manual? 0 Play Time 00:57:38 Cumulative 8.7 hours Start 2026.08.03 @ 15:37:00 End 2026.08.03 @ 16:39:59 Sessions 1 Manual Loads 0 Difficulty Rogue Special Mode None Game No. 9 Rogue 7 Adventurer 2 Explorer 0 Win Type - Total 0 Types 0/0/0/0/0/0/0/0/0/0 Lore% 7 Gallery% 13 Achievement% 14 Wizard Run 0 Options --------- Layout 0 ASCII 0 Keyboard 1 Movement Numpad Keybinds 0 Fullscreen 1 Font 24/Smallcaps Map View 76x50 Zoom Use 0% Tactical HUD 0 Map Filters NONE Filters NONE Steam 1 RUN: 988fa403-9cdf-46d3-be2e-53253c023677